[Event "Marshall Masters 03-2025"]
[Site "New York"]
[Date "2025.03.19"]
[Round "1.1"]
[White "Ling, Chenxuan"]
[Black "Brodsky, David"]
[Result "0-1"]
[Annotator "TA"]
[ECO "E32"]
[WhiteElo "2119"]
[BlackElo "2524"]
[PlyCount "138"]
[EventDate "2025.03.18"]
[EventCountry "USA"]
[SourceTitle "playchess.com"]
[Source "ChessBase"]
[SourceQuality "1"]
[TimeControl "1500+5"]

{[%evp 9,138,13,49,15,20,18,13,13,29,23,20,28,27,14,20,18,15,-14,-4,-21,-10,-1,0,-19,-14,-12,-6,-6,0,-14,0,-4,0,0,0,0,0,0,35,0,0,0,0,-9,-4,-6,0,-12,0,0,0,-10,-12,-15,-18,-33,-13,-30,0,-27,-27,-27,-8,-34,-27,-38,-35,-27,-32,-29,-19,-40,-9,-38,-16,-22,-15,-12,-14,-23,-17,-77,-78,-97,-97,-97,-97,-97,-97,-97,-97,-97,-97,-97,-97,-97,-97,-97,-97,-104,-89,-89,-89,-89,-89,-91,-75,-138,-104,-138,-131,-128,-128,-1065,-1010,-29971,-29972,-29981,-29982,-29985,-29985,-29988,-29989,-29989,-29988,-29988,-29989,-29989,-297,-29990,-29991]} 1. d4 {[%emt 0:05:37]} Nf6 {[%emt 0:00:10]} 2. c4 {[%emt 0:00:28]} e6 {[%emt 0:00:05]} 3. Nc3 {[%emt 0:00:14]} Bb4 {[%emt 0:00:07]} 4. Qc2 {[%emt 0:00:05]} h6 {[%emt 0:00:27]} 5. Nf3 {[%emt 0:00:53]} b6 {[%emt 0:01:02]} 6. e3 {[%emt 0:02:01] E32: Nimzo-Indian: Classical (4 Qc2): 4...0-0.} Bb7 {[%emt 0:00:47]} 7. Be2 {[%emt 0:00:10]} O-O {[%emt 0:00:18]} 8. O-O {[%emt 0:00:15] The position is equal.} c5 {[%emt 0:00:08]} 9. a3 {[%emt 0:01:25]} Bxc3 {[%emt 0:00:10]} 10. Qxc3 {[%emt 0:00:10]} cxd4 {[%emt 0:02:17]} 11. exd4 {[%emt 0:01:04]} d5 {[%emt 0:00:08]} 12. b3 {[%emt 0:02:46]} Nbd7 $146 {[%emt 0:00:30]} (12... Nc6 13. Rd1 dxc4 14. bxc4 Rc8 15. Bb2 Qe7 16. Rac1 Rfd8 17. Qe3 Ba6 18. h3 Na5 {1-0 Mitic,M (1945)-Lazarevic,Z (2101) Belgrade-chT2 Quality 2022 (3.1)}) 13. Be3 {[%emt 0:01:20]} Rc8 {[%emt 0:00:09]} 14. Rac1 {[%emt 0:00:30]} dxc4 {[%emt 0:03:17]} 15. bxc4 {[%emt 0:00:11]} Nd5 {[%emt 0:00:05]} 16. Qb3 {[%emt 0:01:27]} Nxe3 {[%emt 0:00:05]} 17. Qxe3 {[%emt 0:00:05]} Qe7 {[%emt 0:01:07]} 18. Rfd1 {[%emt 0:00:40]} Rfe8 {[%emt 0:01:39]} 19. Bd3 {[%emt 0:01:42]} Rcd8 {[%emt 0:01:37]} (19... Qxa3 $2 20. Bh7+ Kxh7 21. Qxa3 $18) 20. Re1 {[%emt 0:00:43]} Nf6 {[%emt 0:01:36]} (20... Qxa3 $2 21. Bh7+ Kxh7 22. Qxa3 $18) 21. Ne5 {[%emt 0:00:30] Prevents Ng4.} Qd6 {[%emt 0:00:19]} (21... Qxa3 $2 22. Bh7+ Nxh7 23. Qxa3 $18) 22. Rcd1 {[%emt 0:00:34]} Qc7 {[%emt 0:00:28]} (22... Qxa3 $2 23. Bh7+ Nxh7 24. Qxa3 $18) 23. h3 {[%emt 0:00:26]} Ba8 {[%emt 0:00:42]} 24. Bf1 {[%emt 0:00:33]} Nd7 {[%emt 0:00:49]} 25. Nxd7 {[%emt 0:00:35]} Qxd7 {[%emt 0:00:08]} 26. Be2 {[%emt 0:00:42]} Qc6 {[%emt 0:00:32][%csl Ga8][%cal Rc6g2]} 27. Bf1 {[%emt 0:00:13]} Qa4 {[%emt 0:00:21]} 28. Rd2 {[%emt 0:00:18]} Bb7 {[%emt 0:00:23]} 29. Rc1 {[%emt 0:00:22]} Rc8 {[%emt 0:00:34]} 30. Be2 {[%emt 0:00:32]} Red8 {[%emt 0:00:05]} 31. Bd1 {[%emt 0:00:29]} Qa5 {[%emt 0:00:37]} 32. Be2 {[%emt 0:00:05]} Ba6 {[%emt 0:01:07]} 33. Rdc2 {[%emt 0:00:08]} Qf5 {[%emt 0:00:52]} 34. Bf1 {[%emt 0:00:24]} Qf6 {[%emt 0:00:26]} 35. Rd2 {[%emt 0:00:05]} Bb7 {[%emt 0:00:10]} 36. f3 {[%emt 0:00:10]} Ba6 {[%emt 0:00:17]} 37. Be2 {[%emt 0:00:09]} Rd7 {[%emt 0:00:08]} 38. Bf1 {[%emt 0:00:06]} Rcd8 {[%emt 0:00:10][%cal Rd7d4]} 39. Rcd1 {[%emt 0:00:05]} Bb7 {[%emt 0:00:12]} 40. Be2 {[%emt 0:00:06]} h5 {[%emt 0:00:05]} 41. Bf1 {[%emt 0:00:05]} g6 {[%emt 0:00:11]} 42. c5 {[%emt 0:00:05]} Qe7 {[%emt 0:00:46]} 43. cxb6 {[%emt 0:00:07]} axb6 {[%emt 0:00:05]} 44. Rb2 {[%emt 0:00:05]} Rd6 {[%emt 0:00:06]} 45. d5 {[%emt 0:00:05]} Bxd5 $17 {[%emt 0:00:15]} ({Of course not} 45... Rxd5 46. Rxd5 Bxd5 (46... Rxd5 47. Qxb6 Ba8 48. Qb8+ Rd8 49. Qb4 $11) 47. Rxb6 $11) 46. Rxb6 {[%emt 0:00:05]} Rxb6 {[%emt 0:00:17]} 47. Qxb6 {[%emt 0:00:05]} Ra8 {[%emt 0:00:05]} 48. Qb4 {[%emt 0:00:07]} Qa7+ {[%emt 0:00:05]} 49. Kh2 {[%emt 0:00:05]} Qxa3 {[%emt 0:00:06]} 50. Qxa3 {[%emt 0:00:05]} Rxa3 {[%emt 0:00:05][%mdl 4096] Endgame KRB-KRB. Black is a pawn up.} 51. h4 {[%emt 0:00:05]} Kg7 {[%emt 0:00:05]} 52. Kg3 {[%emt 0:00:05]} Ra4 {[%emt 0:00:05]} 53. Rc1 {[%emt 0:00:05]} Kf6 {[%emt 0:00:07] Black is more active.} 54. Rd1 {[%emt 0:00:05]} g5 {[%emt 0:00:05]} 55. hxg5+ {[%emt 0:00:05]} Kxg5 {[%emt 0:00:05]} 56. Re1 {[%emt 0:00:05]} f6 {[%emt 0:00:05]} 57. Rc1 {[%emt 0:00:05]} e5 {[%emt 0:00:05]} 58. Rd1 {[%emt 0:00:05]} (58. Rc5 $142 h4+ 59. Kh2) 58... h4+ {[%emt 0:00:05]} 59. Kh2 {[%emt 0:00:05]} Rd4 {[%emt 0:00:05]} 60. Rc1 {[%emt 0:00:05]} Rd2 {[%emt 0:00:06]} 61. Kg1 $2 {[%emt 0:00:05][%mdl 8192] [#] This costs White the game.} (61. Rc3 $17) 61... h3 $1 $19 {[%emt 0:00:11][%mdl 512] aiming for ...Kf4.} 62. gxh3 {[%emt 0:00:05]} (62. Rb1 hxg2) 62... Bxf3 {[%emt 0:00:05]} 63. Rc3 {[%emt 0:00:05]} e4 {[%emt 0:00:06]} 64. Rc8 {[%emt 0:00:05]} f5 {[%emt 0:00:06]} 65. Re8 {[%emt 0:00:05]} Kf4 {[%emt 0:00:06]} 66. h4 {[%emt 0:00:05]} Rd1 {[%emt 0:00:06]} 67. Kf2 {[%emt 0:00:05] [#]} e3+ $1 {[%emt 0:00:05][%mdl 512]} 68. Rxe3 {[%emt 0:00:05] [#]} Rxf1+ $1 {[%emt 0:00:05][%mdl 512]} 69. Kxf1 {[%emt 0:00:05][%cal Oe3f3] Black must now prevent Rxf3+!.} Kxe3 {[%emt 0:00:05] Weighted Error Value: White=0.11 (very precise) /Black=0.07 (flawless)   Loses game:     	White=1     	---        Mistake:       	White=2     	---        Inaccurate:     	White=7     	Black=3      OK:         	White=16    	Black=18     Best:        	White=1     	Black=2      Brilliant:      	---       	Black=1} 0-1

[Event "Marshall Masters 03-2025"]
[Site "New York"]
[Date "2025.03.19"]
[Round "1.4"]
[White "Adewumi, Tanitoluwa"]
[Black "Block, Joshua"]
[Result "1-0"]
[Annotator "TA"]
[ECO "C41"]
[WhiteElo "2362"]
[BlackElo "1687"]
[PlyCount "97"]
[EventDate "2025.03.18"]
[EventCountry "USA"]
[SourceTitle "playchess.com"]
[Source "ChessBase"]
[SourceQuality "1"]
[TimeControl "1500+5"]

{[%evp 12,97,45,39,37,26,48,45,64,66,83,31,64,45,43,0,99,87,95,51,86,79,79,79,83,79,342,-505,363,351,354,359,372,380,358,351,417,388,414,290,276,267,549,555,551,552,553,535,537,527,610,595,610,604,599,597,590,573,780,776,765,758,813,805,1327,1330,1164,1063,1280,1268,1266,1246,2238,2212,450,2179,2153,2123,29984,29985,29985,29983,29982,29981,29978,29961,29986,29987]} 1. e4 {[%emt 0:00:13]} d6 {[%emt 0:00:10]} 2. d4 {[%emt 0:00:05]} Nf6 {[%emt 0:00:05]} 3. Nc3 {[%emt 0:00:05]} e5 {[%emt 0:00:05]} 4. Nf3 {[%emt 0:00:05]} Nbd7 {[%emt 0:00:13]} 5. Bc4 {[%emt 0:00:05]} Be7 {[%emt 0:00:06]} 6. O-O {[%emt 0:00:05]} c6 {[%emt 0:00:05]} 7. a4 {[%emt 0:00:05]} a5 {[%emt 0:00:30] 7...h6 gains popularity. C41: Philidor Defence.} 8. Re1 {[%emt 0:00:07]} Qc7 {[%emt 0:00:05]} 9. h3 {[%emt 0:00:05]} h6 {[%emt 0:00:05] White is slightly better.} 10. Be3 {[%emt 0:00:05]} g5 {[%emt 0:00:05]} 11. Nh2 {[%emt 0:00:38]} (11. Qd3 $16) 11... Nf8 {[%emt 0:00:07]} 12. dxe5 {[%emt 0:01:09]} dxe5 {[%emt 0:00:05]} 13. Ng4 $146 {[%emt 0:00:18]} (13. Qf3 Be6 14. Bxe6 fxe6 15. Rad1 N8d7 16. Nb1 O-O-O 17. Nd2 Rhf8 18. Qe2 Bc5 19. Qc4 Bxe3 20. Rxe3 {1-0 Nurkiewicz,M (2342)-Jankowiak,P (2039) Lazy Baltic Pearl op-A 17th 2021 (3)}) 13... Ng6 {[%emt 0:00:29]} (13... Bxg4 $11 {remains equal.} 14. hxg4 Ng6) 14. Nxf6+ $16 {[%emt 0:00:11]} Bxf6 {[%emt 0:00:05]} 15. Qh5 {[%emt 0:00:38]} Nf4 {[%emt 0:00:50] [#]} 16. Bxf4 {[%emt 0:00:05]} gxf4 {[%emt 0:00:05] Black is weak on the light squares} 17. Rad1 $36 {[%emt 0:00:09][%mdl 2048] White is in control.} Qe7 {[%emt 0:00:13]} 18. Rd6 {[%emt 0:06:05] White is much more active.} Qxd6 {[%emt 0:03:43][%mdl 8192]} (18... O-O $16 {was necessary.}) 19. Qxf7+ $18 {[%emt 0:00:05]} Kd8 {[%emt 0:00:05]} 20. Rd1 {[%emt 0:00:05]} Qxd1+ {[%emt 0:00:05]} 21. Nxd1 {[%emt 0:00:05][%cal Bc3d1,Bd1b2,Bb2d3][%mdl 32]} Be7 {[%emt 0:00:05]} 22. Qg7 {[%emt 0:00:30][%csl LRe5,LRh8]} Rf8 {[%emt 0:00:51]} 23. b3 {[%emt 0:01:44]} (23. Qxe5 b6 24. Nc3 Ra7) 23... Bd6 {[%emt 0:02:16]} 24. Nb2 {[%emt 0:00:05]} (24. Qxh6 Kc7 25. f3 Bd7 $18) 24... Bd7 {[%emt 0:00:11]} 25. Nd3 {[%emt 0:00:05]} Re8 {[%emt 0:04:17]} 26. Bf7 {[%emt 0:00:05]} ({Don't do} 26. Qxh6 Kc7 27. Kh2 Rab8) 26... Kc7 $2 {[%emt 0:00:05]} (26... Re7 27. Qh8+ (27. Qxh6 Kc7 $18) (27. Qf8+ Be8 $18) 27... Be8 28. Qxh6 (28. Bxe8 Kc7 $18) 28... Kc7 29. Bxe8 Raxe8) 27. Bxe8 {[%emt 0:00:05]} Rxe8 {[%emt 0:00:05][%cal Ba8e8,Be8b8,Bb8b3][%mdl 32]} 28. c4 {[%emt 0:00:10]} b6 {[%emt 0:01:03][%cal Bb7b6,Bb6c5][%mdl 32]} 29. c5 {[%emt 0:00:36]} bxc5 {[%emt 0:00:31]} 30. Nb2 {[%emt 0:00:05]} Rb8 {[%emt 0:00:50]} 31. Nc4 {[%emt 0:00:05] [#]} Rxb3 {[%emt 0:00:05]} 32. Nxd6 {[%emt 0:00:08]} Kxd6 {[%emt 0:00:32][%mdl 4096] Endgame KQ-KRB} 33. Qf8+ {[%emt 0:00:05]} Kc7 {[%emt 0:00:19]} 34. Qxc5 {[%emt 0:00:05]} Be6 {[%emt 0:01:05]} 35. Qxe5+ {[%emt 0:00:09]} Kd7 {[%emt 0:00:05]} 36. Qxa5 {[%emt 0:00:08]} f3 {[%emt 0:00:15]} 37. g4 {[%emt 0:00:05]} Kd6 {[%emt 0:00:32]} 38. e5+ {[%emt 0:00:09][%cal Be4e5,Be5e6,Be6e7][%mdl 32]} Kd7 {[%emt 0:00:21]} 39. Qa7+ {[%emt 0:00:05]} Kd8 {[%emt 0:00:08]} 40. Qc5 {[%emt 0:00:05] aiming for Qd6+.} Bd5 {[%emt 0:00:46]} 41. Qd6+ {[%emt 0:00:05]} Kc8 {[%emt 0:00:05]} 42. e6 {[%emt 0:00:05]} Rb1+ {[%emt 0:00:05]} 43. Kh2 {[%emt 0:00:05]} Re1 {[%emt 0:00:14]} 44. e7 {[%emt 0:00:05][%cal Oa4a5] White threatens a5! and mate.} Bf7 {[%emt 0:00:11]} 45. Qxc6+ {[%emt 0:00:05] White mates.} Kb8 {[%emt 0:00:05]} 46. Qb6+ {[%emt 0:00:05]} Kc8 {[%emt 0:00:05]} 47. Qc5+ {[%emt 0:00:05]} Kd7 {[%emt 0:00:05]} 48. Qb5+ {[%emt 0:00:05]} Kc7 {[%emt 0:00:20]} 49. Qa5+ {[%emt 0:00:05] Weighted Error Value: White=0.13 (very precise) /Black=0.66  Loses game:     	---       	Black=1      Missed win:     	---       	Black=1      Mistake:       	White=1     	Black=2      Inaccurate:     	White=2     	Black=2      OK:         	White=16    	Black=5      Best:        	White=3     	Black=1} 1-0

[Event "Marshall Masters 03-2025"]
[Site "New York"]
[Date "2025.03.19"]
[Round "1.5"]
[White "Kozower, Ethan"]
[Black "Zhu, Linxi"]
[Result "0-1"]
[Annotator "TA"]
[ECO "E32"]
[WhiteElo "2012"]
[BlackElo "2301"]
[PlyCount "66"]
[EventDate "2025.03.18"]
[EventCountry "USA"]
[SourceTitle "playchess.com"]
[Source "ChessBase"]
[SourceQuality "1"]
[TimeControl "1500+5"]

{[%evp 11,66,4,5,0,10,10,-6,-25,-8,-2,41,0,0,0,0,0,0,0,0,0,0,0,-4,-3,0,-11,0,0,31,14,23,17,29,0,16,-487,-487,-760,-760,-747,-735,-841,-825,-969,-986,-1068,-1058,-1045,-1038,-1112,-1090,-935,-881,-816,-781,-29992,-29993]} 1. d4 {[%emt 0:00:10]} Nf6 {[%emt 0:00:10]} 2. c4 {[%emt 0:00:05]} e6 {[%emt 0:00:05]} 3. Nc3 {[%emt 0:00:05]} Bb4 {[%emt 0:00:08]} 4. Qc2 {[%emt 0:00:05]} O-O {[%emt 0:00:10]} 5. Nf3 {[%emt 0:00:05]} d5 {[%emt 0:00:17]} 6. cxd5 {[%emt 0:00:05]} exd5 {[%emt 0:00:05]} 7. Bg5 {[%emt 0:00:13][%cal Bc1g5,Bg5h4,Bh4g3][%mdl 32] E32: Nimzo-Indian: Classical (4 Qc2): 4...0-0.} h6 {[%emt 0:00:05]} 8. Bh4 {[%emt 0:01:52]} c5 {[%emt 0:00:05]} 9. dxc5 {[%emt 0:01:53] The position is equal.} Nbd7 {[%emt 0:00:06][%cal Og7g5]} 10. e3 {[%emt 0:02:14]} Nxc5 {[%emt 0:00:15]} 11. Be2 {[%emt 0:00:56]} g5 {[%emt 0:03:34]} 12. Bg3 {[%emt 0:00:05]} Nfe4 {[%emt 0:00:19]} 13. O-O {[%emt 0:00:53][%cal Og3c7]} Bxc3 {[%emt 0:00:34]} 14. bxc3 {[%emt 0:00:05] A sharp opening} Bf5 {[%emt 0:00:05] [#]} 15. Qb2 {[%emt 0:03:53]} Qe7 {[%emt 0:02:18]} 16. Rac1 {[%emt 0:04:43]} Rac8 $146 {[%emt 0:03:14]} (16... Rfd8 17. c4 Nxg3 18. hxg3 Nd3 19. Bxd3 Bxd3 20. Rfd1 dxc4 21. Ne5 Qe6 22. Nxd3 Rxd3 23. Rxd3 cxd3 24. Qxb7 Rd8 25. Qc7 Qd6 26. Qxd6 {½-½ Rawlings,A (2328)-Tillett,R (2260) BCCC 18/19 Cand 2018}) 17. c4 {[%emt 0:00:25]} dxc4 {[%emt 0:00:05]} 18. Bxc4 {[%emt 0:01:07]} Nxg3 {[%emt 0:00:46]} 19. hxg3 {[%emt 0:00:17]} a6 {[%emt 0:01:47]} (19... Bd3 $5) 20. Nd4 {[%emt 0:02:09]} Bg6 {[%emt 0:00:27]} 21. Qb6 {[%emt 0:01:17]} Kh7 {[%emt 0:01:13]} 22. Rfd1 {[%emt 0:00:26]} Rfd8 {[%emt 0:01:28]} 23. Nb3 $2 {[%emt 0:01:07][%mdl 8192] [#] Now White is beyond hope.} (23. g4 $11) 23... Na4 $19 {[%emt 0:00:40]} 24. Rxd8 {[%emt 0:01:26]} (24. Qa5 $142 Rxd1+ 25. Rxd1 Rxc4 26. Nd2) 24... Nxb6 {[%emt 0:00:11]} 25. Rxc8 {[%emt 0:00:17]} Nxc8 {[%emt 0:00:07]} 26. Bd5 {[%emt 0:00:31]} Nb6 {[%emt 0:00:09]} 27. Bf3 {[%emt 0:00:05]} Qa3 {[%emt 0:01:35]} 28. Rc7 {[%emt 0:00:17]} Qxa2 {[%emt 0:00:18]} 29. Nd4 {[%emt 0:00:05]} Na4 {[%emt 0:01:10]} 30. Rxb7 {[%emt 0:00:10]} Nc3 {[%emt 0:00:05][%cal Og5g4] White must now prevent ...g4!.} 31. Rc7 {[%emt 0:00:33]} Qb1+ {[%emt 0:00:15]} 32. Kh2 {[%emt 0:00:05]} Ne4 {[%emt 0:00:06]} 33. Nc6 {[%emt 0:00:11]} Nxf2 {[%emt 0:00:12] Weighted Error Value: White=0.60/Black=0.10 (very precise)   Loses game:     	White=1     	---        Mistake:       	White=1     	---        Inaccurate:     	White=2     	Black=2      OK:         	White=8     	Black=7      Best:        	---       	Black=4} 0-1